fUSD/lending_fUSD_20250314
["ID","MTS","AMOUNT","RATE_DAILY","PERIOD"]
[356125027,1741931432986,-1000.0,0.00011538,2]
[356125028,1741931432995,-250.0,0.00011613,2]
[356125029,1741931433005,-182.82,0.00011627,2]
[356125030,1741931433014,-1161.0,0.000117,2]
[356125031,1741931433024,-5274.39,0.00011709,2]
[356125032,1741931433033,-150.0,0.00011721,7]
[356125033,1741931433043,-23900.0,0.00011724,2]
[356125034,1741931433053,-754.04,0.00011794,2]
[356125035,1741931433062,-2000.0,0.00011801,2]
[356125036,1741931433072,-150.0,0.00011914,2]
[356125037,1741931433082,-183.02,0.00011916,2]
[356125038,1741931433091,-594.6906,0.00011922,2]
[356125039,1741931433101,-312.92954828,0.00011922,2]
[356125040,1741931433110,-157.24,0.00011929,2]
[356125041,1741931433119,-2242.6110207,0.00012,2]
[356125042,1741931433128,-1212.9441,0.00012055,2]
[356125043,1741931433138,-153.38,0.00012062,2]
[356125044,1741931433148,-13780.14786136,0.00012067,2]
[356125045,1741931433157,-766.94,0.00012068,2]
[356125046,1741931433166,-214.66,0.000121,2]
[356125047,1741931433175,-1674.69,0.00012177,2]
[356125048,1741931433185,-250.0,0.00012204,2]
[356125049,1741931433194,-6271.2076596,0.00012419,2]
[356125050,1741931433204,-12066.2707466,0.00012427,2]
[356125051,1741931433213,-171.12,0.00012462,2]
[356125052,1741931433223,-169.95,0.00012463,2]
[356125053,1741931433236,-1279.0,0.00012509,2]
[356125054,1741931433246,-2033.0,0.00012509,2]
[356125055,1741931433255,-642.224,0.00012509,2]
[356125056,1741931433265,-150.222,0.00012509,2]
[356125057,1741931433274,-571.0,0.00012509,2]
[356125058,1741931433284,-1418.0,0.00012509,2]
[356125059,1741931433294,-786.0,0.00012509,2]
[356125060,1741931433303,-1288.354,0.00012509,2]
[356125061,1741931433313,-907.0,0.00012509,2]
[356125062,1741931433322,-542.147,0.00012509,2]
[356125063,1741931433332,-1447.043,0.00012509,2]
[356125064,1741931433341,-4078.0,0.00012509,2]
[356125065,1741931433350,-3934.0,0.00012509,2]
[356125066,1741931433359,-1013.0,0.00012509,2]
[356125067,1741931433369,-292.009,0.00012509,2]
[356125068,1741931433378,-157.66,0.00012577,2]
[356125069,1741931433387,-157.66,0.00012614,2]
[356125070,1741931433396,-157.66,0.00012651,2]
[356125071,1741931433406,-153.38,0.00012666,2]
[356125072,1741931433415,-157.66,0.00012688,2]
[356125073,1741931433424,-157.66,0.00012725,2]
[356125074,1741931433433,-157.66,0.00012762,2]
[356125075,1741931433443,-157.66,0.00012799,2]
[356125076,1741931433452,-157.66,0.00012836,2]
[356125077,1741931433461,-157.66,0.00012873,2]
[356125078,1741931433470,-157.66,0.0001291,2]
[356125079,1741931433484,-157.66,0.00012947,2]
[356125080,1741931433494,-1000.0,0.0001298,2]
[356125081,1741931433503,-157.66,0.00012984,2]
[356125082,1741931433512,-157.66,0.00013021,2]
[356125083,1741931433521,-157.66,0.00013058,2]
[356125084,1741931433530,-312.9295482,0.00013061,2]
[356125085,1741931433540,-157.66,0.00013095,2]
[356125086,1741931433552,-157.66,0.00013132,2]
[356125087,1741931433563,-157.66,0.00013169,2]
[356125088,1741931433572,-26628.21697115,0.00013176,2]
[356125089,1741931433581,-157.66,0.00013206,2]
[356125090,1741931433591,-754.04,0.00013268,2]
[356125091,1741931433601,-766.94,0.00013576,2]
[356125092,1741931433610,-200.0,0.00013699,2]
[356125093,1741931433619,-150.0,0.00014012,2]
[356125094,1741931433630,-150.027,0.00014012,2]
[356125095,1741931433640,-312.9295482,0.000142,2]
[356125096,1741931433650,-1899.297,0.00014206,2]
[356125097,1741931433659,-1000.0,0.00014422,2]
[356125098,1741931433669,-1674.69,0.0001444,2]
[356125099,1741931433679,-500.0,0.00014651,2]
[356125100,1741931433688,-500.0,0.00014651,2]
[356125101,1741931433697,-500.0,0.00014651,2]
[356125102,1741931433706,-500.0,0.00014651,2]
[356125103,1741931433716,-500.0,0.00014651,2]
[356125104,1741931433725,-500.0,0.00014651,2]
[356125105,1741931433734,-500.0,0.00014651,2]
[356125106,1741931433743,-500.0,0.00014651,2]
[356125107,1741931433753,-500.0,0.00014651,2]
[356125108,1741931433762,-501.0,0.00014651,2]
[356125109,1741931433771,-754.04,0.00014742,2]
[356125110,1741931433780,-766.94,0.00015084,2]
[356125111,1741931433790,-150.0,0.00015099,2]
[356125112,1741931433799,-150.0,0.00015105,2]
[356125113,1741931433808,-150.0,0.00015112,2]
[356125114,1741931433818,-150.0,0.00015118,2]
[356125115,1741931433828,-257.30512232,0.00015122,2]
[356125116,1741931433837,-1000.0,0.00015124,2]
[356125117,1741931433846,-150.0,0.00015129,2]
[356125118,1741931433855,-1000.0,0.00015132,2]
[356125119,1741931433865,-150.0,0.00015138,2]
[356125120,1741931433874,-1000.0,0.00015144,2]
[356125121,1741931433884,-150.0,0.00015145,2]
[356125122,1741931433893,-150.0,0.00015149,2]
[356125123,1741931433902,-1000.0,0.00015149,2]
[356125124,1741931433912,-1000.0,0.00015155,2]
[356125125,1741931433921,-1000.0,0.00015157,2]
[356125126,1741931433930,-1000.0,0.00015159,2]
[356125127,1741931433940,-891.0,0.00015163,2]
[356125128,1741931433949,-1000.0,0.00015165,2]
[356125130,1741931433958,-1000.0,0.00015175,2]
[356125132,1741931433967,-150.0,0.00015182,2]
[356125134,1741931433976,-1000.0,0.00015185,2]
[356125135,1741931433985,-152.89383961,0.00015187,2]
[356125137,1741931433994,-150.0,0.00015187,2]
[356125139,1741931434003,-150.0,0.0001519,2]
[356125141,1741931434012,-150.0,0.00015191,2]
[356125143,1741931434021,-1000.0,0.00015202,2]
[356125145,1741931434031,-150.0,0.00015203,2]
[356125147,1741931434040,-150.0,0.00015205,2]
[356125149,1741931434049,-150.0,0.00015206,2]
[356125151,1741931434059,-1000.0,0.00015206,2]
[356125153,1741931434068,-1000.0,0.00015207,2]
[356125155,1741931434077,-151.01220726,0.00015207,2]
[356125157,1741931434086,-234.86283304,0.00015207,2]
[356125159,1741931434095,-150.0,0.00015209,2]
[356125161,1741931434104,-1000.0,0.00015211,2]
[356125162,1741931434114,-1000.0,0.00015211,2]
[356125164,1741931434123,-197.22851463,0.00015211,2]
[356125166,1741931434132,-150.0,0.00015213,2]
[356125168,1741931434141,-150.0,0.00015215,2]
[356125170,1741931434150,-150.0,0.00015215,2]
[356125172,1741931434159,-1000.0,0.00015217,2]
[356125174,1741931434169,-257.30512232,0.00015218,2]
[356125176,1741931434179,-1000.0,0.00015219,2]
[356125177,1741931434188,-150.0,0.00015222,2]
[356125179,1741931434198,-150.0,0.00015224,2]
[356125180,1741931434207,-150.0,0.00015225,2]
[356125181,1741931434217,-1000.0,0.0001523,2]
[356125182,1741931434226,-150.0,0.0001523,2]
[356125183,1741931434235,-1000.0,0.00015232,2]
[356125184,1741931434244,-1000.0,0.00015234,2]
[356125185,1741931434254,-150.0,0.00015238,2]
[356125186,1741931434264,-150.0,0.00015239,2]
[356125187,1741931434273,-1000.0,0.00015239,2]
[356125188,1741931434282,-150.0,0.00015244,2]
[356125189,1741931434292,-150.0,0.00015246,2]
[356125190,1741931434301,-257.30512232,0.00015246,2]
[356125191,1741931434310,-150.0,0.00015249,2]
[356125192,1741931434320,-150.0,0.00015249,2]
[356125193,1741931434330,-390.55885997,0.00015262,2]
[356125194,1741931434339,-150.0,0.00015265,2]
[356125195,1741931434350,-150.0,0.00015267,2]
[356125196,1741931434359,-150.0,0.00015273,2]
[356125197,1741931434369,-1000.0,0.00015273,2]
[356125198,1741931434379,-1000.0,0.00015274,2]
[356125199,1741931434389,-150.0,0.00015275,2]
[356125200,1741931434399,-157.21622878,0.00015275,2]
[356125201,1741931434408,-150.0,0.00015279,2]
[356125202,1741931434419,-667.92400305,0.00015284,2]
[356125203,1741931434428,-1000.0,0.00015285,2]
[356125204,1741931434438,-150.0,0.00015285,2]
[356125205,1741931434448,-150.0,0.00015286,2]
[356125206,1741931434457,-150.0,0.00015292,2]
[356125207,1741931434467,-150.0,0.00015294,2]
[356125208,1741931434477,-151.0,0.00015299,2]
[356125209,1741931434486,-151.0,0.00015299,2]
[356125210,1741931434496,-151.0,0.00015299,2]
[356125211,1741931434505,-150.0,0.00015299,2]
[356125212,1741931434515,-150.0,0.000153,2]
[356125213,1741931434524,-989.83647373,0.000153,2]
[356125214,1741931434534,-1000.0,0.00015303,2]
[356125215,1741931434544,-1000.0,0.00015313,2]
[356125216,1741931434557,-219.16321193,0.00015315,2]
[356125217,1741931434567,-1000.0,0.00015315,2]
[356125218,1741931434577,-1000.0,0.00015319,2]
[356125219,1741931434587,-150.0,0.00015323,2]
[356125220,1741931434599,-1000.0,0.00015324,2]
[356125221,1741931434609,-1000.0,0.00015326,2]
[356125222,1741931434618,-1000.0,0.00015326,2]
[356125223,1741931434629,-1000.0,0.00015328,2]
[356125224,1741931434639,-150.0,0.00015329,2]
[356125225,1741931434649,-150.0,0.00015329,2]
[356125226,1741931434659,-1000.0,0.00015332,2]
[356125227,1741931434670,-150.0,0.00015332,2]
[356125228,1741931434680,-150.0,0.00015334,2]
[356125229,1741931434690,-150.0,0.00015338,2]
[356125230,1741931434700,-267.19436576,0.00015338,2]
[356125231,1741931434709,-312.9295482,0.00015339,2]
[356125232,1741931434720,-150.0,0.00015347,2]
[356125233,1741931434729,-150.0,0.00015348,2]
[356125234,1741931434739,-150.0,0.0001535,2]
[356125235,1741931434749,-150.0,0.00015352,2]
[356125236,1741931434759,-150.0,0.00015356,2]
[356125237,1741931434769,-1000.0,0.00015357,2]
[356125238,1741931434779,-150.0,0.00015358,2]
[356125239,1741931434789,-1000.0,0.00015358,2]
[356125240,1741931434799,-150.0,0.00015358,2]
[356125241,1741931434808,-150.0,0.00015362,2]
[356125242,1741931434818,-150.0,0.00015363,2]
[356125243,1741931434828,-150.0,0.00015365,2]
[356125244,1741931434839,-150.0,0.00015374,2]
[356125245,1741931434849,-150.0,0.00015382,2]
[356125246,1741931434859,-150.0,0.00015389,2]
[356125247,1741931434869,-150.0,0.00015391,2]
[356125248,1741931434878,-1000.0,0.00015391,2]
[356125249,1741931434888,-150.0,0.00015393,2]
[356125250,1741931434898,-256.90283129,0.00015397,2]
[356125251,1741931434908,-133936.99274493,0.000154,2]
[356125252,1741931434918,-151.234575,0.000154,2]
[356125253,1741931434927,-151.0,0.000154,2]
[356125254,1741931434937,-151.0,0.000154,2]
[356125255,1741931434947,-192.281537,0.000154,2]
[356125256,1741931434957,-192.281537,0.000154,2]
[356125257,1741931434967,-151.0,0.000154,2]
[356125258,1741931434976,-151.0,0.000154,2]
[356125259,1741931434986,-151.0,0.000154,2]
[356125260,1741931434996,-151.0,0.000154,2]
[356125261,1741931435006,-151.0,0.000154,2]
[356125262,1741931435016,-500.0,0.000154,2]
[356125263,1741931435026,-500.0,0.000154,2]
[356125264,1741931435036,-152.68208656,0.000154,2]
[356125265,1741931435046,-150.0,0.000154,2]
[356125266,1741931435056,-1585.06346221,0.000155,7]
[356125267,1741931435066,-1279.0,0.00015509,2]
[356125268,1741931435077,-2033.0,0.00015509,2]
[356125269,1741931435087,-641.0,0.00015509,2]
[356125270,1741931435096,-150.0,0.00015509,2]
[356125271,1741931435106,-571.0,0.00015509,2]
[356125272,1741931435116,-1418.0,0.00015509,2]
[356125273,1741931435126,-786.0,0.00015509,2]
[356125274,1741931435136,-1271.0,0.00015509,2]
[356125275,1741931435146,-907.0,0.00015509,2]
[356125276,1741931435156,-541.0,0.00015509,2]
[356125277,1741931435166,-1428.0,0.00015509,2]
[356125278,1741931435176,-4078.0,0.00015509,2]
[356125279,1741931435186,-3934.0,0.00015509,2]
[356125280,1741931435195,-1013.0,0.00015509,2]
[356125281,1741931435205,-151.0,0.00015509,2]
[356125282,1741931435216,-968.47694156,0.00015537,2]
[356125283,1741931435225,-500.0,0.00015537,2]
[356125284,1741931435235,-150.0,0.00015537,2]
[356125285,1741931435245,-501.57357659,0.0001565,2]
[356125286,1741931435254,-371.50470524,0.0001565,2]
[356125287,1741931435264,-161.23054943,0.0001565,2]
[356125288,1741931435274,-500.0,0.00015674,2]
[356125289,1741931435284,-207.5393342,0.00015674,2]
[356125290,1741931435294,-300.0,0.000158,2]
[356125291,1741931435304,-874.59129203,0.00015811,2]
[356125292,1741931435314,-3799.881,0.00015836,2]
[356125293,1741931435324,-1000.0,0.00015864,2]
[356125294,1741931435335,-778.74,0.00016019,2]
[356125295,1741931435345,-255.34,0.00016019,2]
[356125296,1741931435355,-989.83647368,0.00016064,2]
[356125297,1741931435365,-302.29,0.00016164,2]
[356125298,1741931435375,-300.47,0.00016164,2]
[356125299,1741931435384,-301.06,0.00016164,2]
[356125300,1741931435394,-301.32,0.00016164,2]
[356125301,1741931435404,-441.21,0.00016164,2]
[356125302,1741931435414,-441.21,0.00016164,2]
[356125303,1741931435424,-345.24,0.00016164,2]
[356125304,1741931435434,-439.72,0.00016164,2]
[356125305,1741931435444,-345.24,0.00016164,2]
[356125306,1741931435453,-693.94,0.00016164,2]
[356125307,1741931435463,-754.04,0.00016216,2]
[356125308,1741931435472,-179.543,0.000163,2]
[356125309,1741931435483,-312.9295482,0.00016478,2]
[356125310,1741931435492,-535.63,0.00016493,30]
[356125311,1741931435502,-30000.0,0.000165,7]
[356125312,1741931435512,-151.0,0.000165,2]
[356125313,1741931435522,-151.0,0.000165,2]
[356125314,1741931435532,-151.0,0.000165,2]
[356125315,1741931435541,-192.281537,0.000165,2]
[356125316,1741931435562,-192.281537,0.000165,2]
[356125317,1741931435573,-151.0,0.000165,2]
[356125318,1741931435582,-151.0,0.000165,2]
[356125319,1741931435592,-151.0,0.000165,2]
[356125320,1741931435602,-151.0,0.000165,2]
[356125321,1741931435612,-151.0,0.000165,2]
[356125322,1741931435621,-151.0,0.000165,2]
[356125323,1741931435632,-151.0,0.000165,2]
[356125324,1741931435642,-151.0,0.000165,2]
[356125325,1741931435652,-151.0,0.000165,2]
[356125326,1741931435661,-151.0,0.000165,2]
[356125327,1741931435672,-151.0,0.000165,2]
[356125328,1741931435682,-151.0,0.000165,2]
[356125329,1741931435692,-151.0,0.000165,2]
[356125330,1741931435702,-151.0,0.000165,2]
[356125331,1741931435726,-151.0,0.000165,2]
[356125332,1741931435739,-151.0,0.000165,2]
[356125333,1741931435750,-151.0,0.000165,2]
[356125334,1741931435762,-151.0,0.000165,2]
[356125335,1741931435773,-151.0,0.000165,2]
[356125336,1741931435783,-151.0,0.000165,2]
[356125337,1741931435794,-151.0,0.000165,2]
[356125338,1741931435805,-151.0,0.000165,2]
[356125339,1741931435817,-151.0,0.000165,2]
[356125340,1741931435830,-151.0,0.000165,2]
[356125341,1741931435840,-151.0,0.000165,2]
[356125342,1741931435851,-151.0,0.000165,2]
[356125343,1741931435862,-151.0,0.000165,2]
[356125344,1741931435872,-151.0,0.000165,2]
[356125345,1741931435882,-151.0,0.000165,2]
[356125346,1741931435893,-151.0,0.000165,2]
[356125347,1741931435904,-151.0,0.000165,2]
[356125348,1741931435915,-151.0,0.000165,2]
[356125349,1741931435926,-151.0,0.000165,2]
[356125350,1741931435937,-151.0,0.000165,2]
[356125351,1741931435948,-151.0,0.000165,2]
[356125352,1741931435958,-151.0,0.000165,2]
[356125353,1741931435968,-151.0,0.000165,2]
[356125354,1741931435978,-151.0,0.000165,2]
[356125355,1741931435989,-151.0,0.000165,2]
[356125356,1741931435999,-151.0,0.000165,2]
[356125357,1741931436010,-151.0,0.000165,2]
[356125358,1741931436020,-151.0,0.000165,2]
[356125359,1741931436031,-151.0,0.000165,2]
[356125360,1741931436040,-151.0,0.000165,2]
[356125361,1741931436051,-151.0,0.000165,2]
[356125362,1741931436061,-151.0,0.000165,2]
[356125363,1741931436071,-151.0,0.000165,2]
[356125364,1741931436081,-151.0,0.000165,2]
[356125365,1741931436092,-151.0,0.000165,2]
[356125366,1741931436102,-151.0,0.000165,2]
[356125367,1741931436113,-151.0,0.000165,2]
[356125368,1741931436123,-151.0,0.000165,2]
[356125369,1741931436133,-151.0,0.000165,2]
[356125370,1741931436144,-151.0,0.000165,2]
[356125371,1741931436154,-151.0,0.000165,2]
[356125372,1741931436164,-766.94,0.00016593,2]
[356125373,1741931436174,-1674.69,0.00016704,2]
[356125374,1741931436184,-989.83647368,0.00016827,2]
[356125375,1741931436194,-164.07,0.0001697,2]
[356125376,1741931436204,-442.02,0.00016974,2]
[356125377,1741931436214,-205.72087818,0.00017,2]
[356125378,1741931436224,-150.0,0.00017012,2]
[356125379,1741931436234,-1000.0,0.00017307,2]
[356125380,1741931436244,-30000.0,0.000175,8]
[356125381,1741931436254,-151.0,0.000175,2]
[356125382,1741931436264,-151.0,0.000175,2]
[356125383,1741931436274,-192.281537,0.000175,2]
[356125384,1741931436283,-192.281537,0.000175,2]
[356125385,1741931436293,-151.0,0.000175,2]
[356125386,1741931436303,-151.0,0.000175,2]
[356125387,1741931436313,-989.83647368,0.00017591,2]
[356125388,1741931436323,-312.9295482,0.00017617,2]
[356125389,1741931436334,-151.0,0.00017647,2]
[356125390,1741931436343,-151.0,0.00017647,2]
[356125391,1741931436353,-170.291489,0.00017647,2]
[356125392,1741931436363,-170.291489,0.00017647,2]
[356125393,1741931436373,-267.799898,0.00017647,2]
[356125394,1741931436383,-267.799898,0.00017647,2]
[356125395,1741931436394,-151.0,0.00017673,2]
[356125396,1741931436404,-151.0,0.0001769,2]
[356125397,1741931436414,-229.405071,0.0001769,2]
[356125398,1741931436424,-152.27349,0.0001769,2]
[356125399,1741931436434,-167.558601,0.0001769,2]
[356125400,1741931436443,-151.0,0.0001769,2]
[356125401,1741931436453,-151.0,0.0001769,2]
[356125402,1741931436463,-151.0,0.0001769,2]
[356125403,1741931436473,-212.588452,0.0001769,2]
[356125404,1741931436483,-212.588452,0.0001769,2]
[356125405,1741931436493,-216.164744,0.0001769,2]
[356125406,1741931436503,-754.04,0.0001769,2]
[356125407,1741931436513,-186.666427,0.00017808,2]
[356125408,1741931436523,-151.0,0.00018065,2]
[356125409,1741931436533,-151.0,0.00018065,2]
[356125410,1741931436544,-151.0,0.00018065,2]
[356125411,1741931436559,-200.0,0.00018082,2]
[356125412,1741931436571,-766.94,0.00018101,2]
[356125413,1741931436581,-151.0,0.00018143,2]
[356125414,1741931436592,-151.0,0.00018143,2]
[356125415,1741931436602,-151.0,0.00018143,2]
[356125416,1741931436612,-151.0,0.00018143,2]
[356125417,1741931436624,-151.0,0.00018143,2]
[356125418,1741931436634,-165.372879,0.00018143,2]
[356125419,1741931436645,-165.372879,0.00018143,2]
[356125420,1741931436655,-151.0,0.00018143,2]
[356125421,1741931436665,-151.0,0.00018143,2]
[356125422,1741931436675,-151.455384,0.00018143,2]
[356125423,1741931436685,-151.0,0.00018143,2]
[356125424,1741931436696,-151.0,0.00018143,2]
[356125425,1741931436706,-151.0,0.00018143,2]
[356125426,1741931436717,-151.0,0.00018143,2]
[356125427,1741931436727,-1024.31264,0.00018143,2]
[356125428,1741931436737,-151.341266,0.00018143,2]
[356125429,1741931436747,-1024.31264,0.00018143,2]
[356125430,1741931436758,-174.103878,0.00018143,2]
[356125431,1741931436768,-174.103878,0.00018143,2]
[356125432,1741931436778,-151.0,0.0001828,2]
[356125433,1741931436788,-151.0,0.0001831,2]
[356125434,1741931436799,-989.83647368,0.00018355,2]
[356125435,1741931436810,-30000.0,0.000185,8]
[356125436,1741931437090,-151.0,0.000185,2]
[356125437,1741931437113,-188.364084,0.000185,2]
[356125438,1741931437124,-188.364084,0.000185,2]
[356125439,1741931437133,-151.0,0.000185,2]
[356125440,1741931437143,-151.0,0.000185,2]
[356125441,1741931437152,-151.0,0.000185,2]
[356125442,1741931437161,-151.0,0.000185,2]
[356125443,1741931437170,-151.0,0.000185,2]
[356125444,1741931437180,-151.0,0.000185,2]
[356125445,1741931437190,-151.0,0.000185,2]
[356125446,1741931437199,-154.281157,0.000185,2]
[356125447,1741931437209,-151.0,0.000185,2]
[356125448,1741931437220,-151.0,0.000185,2]
[356125449,1741931437230,-151.0,0.000185,2]
[356125450,1741931437239,-151.0,0.000185,2]
[356125451,1741931437248,-151.0,0.000185,2]
[356125452,1741931437258,-151.0,0.000185,2]
[356125453,1741931437267,-1279.0,0.00018509,2]
[356125454,1741931437276,-2033.0,0.00018509,2]
[356125455,1741931437286,-641.0,0.00018509,2]
[356125456,1741931437296,-150.0,0.00018509,2]
[356125457,1741931437306,-571.0,0.00018509,2]
[356125458,1741931437315,-1418.0,0.00018509,2]
[356125459,1741931437325,-786.0,0.00018509,2]
[356125460,1741931437334,-1271.0,0.00018509,2]
[356125461,1741931437344,-907.0,0.00018509,2]
[356125462,1741931437354,-541.0,0.00018509,2]
[356125463,1741931437363,-1428.0,0.00018509,2]
[356125464,1741931437373,-4078.0,0.00018509,2]
[356125465,1741931437382,-3934.0,0.00018509,2]
[356125466,1741931437392,-1013.0,0.00018509,2]
[356125467,1741931437401,-151.0,0.00018509,2]
[356125468,1741931437411,-250.917616,0.00018533,2]
[356125469,1741931437420,-151.0,0.00018533,2]
[356125470,1741931437429,-151.0,0.00018533,2]
[356125471,1741931437439,-192.281537,0.00018533,2]
[356125472,1741931437448,-192.281537,0.00018533,2]
[356125473,1741931437457,-151.0,0.00018533,2]
[356125474,1741931437466,-234.795716,0.00018533,2]
[356125475,1741931437475,-9338.54,0.00018533,2]
[356125476,1741931437484,-312.9295482,0.00018756,2]
[356125477,1741931437494,-300.0,0.00018759,2]
[356125478,1741931437503,-779.11,0.00018873,2]
[356125479,1741931437513,-779.11,0.00018873,2]
[356125480,1741931437522,-890.34,0.00018873,2]
[356125481,1741931437532,-674.84,0.00018873,2]
[356125482,1741931437541,-151.405035,0.000189,2]
[356125483,1741931437554,-151.0,0.000189,2]
[356125484,1741931437564,-151.0,0.000189,2]
[356125485,1741931437574,-1674.69,0.00018968,2]
[356125486,1741931437583,-34589.7802071,0.00019,2]
[356125487,1741931437592,-800.74455975,0.00019,2]
[356125488,1741931437602,-989.83647368,0.00019118,2]
[356125489,1741931437611,-151.13419337,0.00019429,2]
[356125490,1741931437621,-30000.0,0.000195,8]
[356125491,1741931437633,-500.0,0.000195,2]
[356125492,1741931437643,-500.0,0.000195,2]
[356125493,1741931437653,-500.0,0.000195,2]
[356125494,1741931437663,-802.54741846,0.000195,2]
[356125495,1741931437673,-210.525632,0.000195,2]
[356125496,1741931437683,-151.0,0.000195,2]
[356125497,1741931437693,-192.281537,0.000195,2]
[356125498,1741931437703,-192.281537,0.000195,2]
[356125499,1741931437712,-151.0,0.000195,2]
[356125500,1741931437722,-151.442034,0.000195,2]
[356125501,1741931437731,-151.444278,0.000195,2]
[356125502,1741931437742,-151.425876,0.000195,2]
[356125503,1741931437751,-151.0,0.000195,2]
[356125504,1741931437761,-151.0,0.000195,2]
[356125505,1741931437770,-283.12545,0.000195,2]
[356125506,1741931437780,-151.0,0.000195,2]
[356125507,1741931437790,-151.0,0.000195,2]
[356125508,1741931437799,-151.0,0.000195,2]
[356125509,1741931437808,-165.372879,0.000195,2]
[356125510,1741931437818,-165.372879,0.000195,2]
[356125511,1741931437829,-151.0,0.000195,2]
[356125512,1741931437839,-151.366129,0.000195,2]
[356125513,1741931437849,-170.291489,0.000195,2]
[356125514,1741931437859,-170.291489,0.000195,2]
[356125515,1741931437869,-180.872518,0.000195,2]
[356125516,1741931437878,-151.0,0.000195,2]
[356125517,1741931437889,-267.799898,0.000195,2]
[356125518,1741931437899,-151.0,0.000195,2]
[356125519,1741931437909,-267.799898,0.000195,2]
[356125520,1741931437920,-151.0,0.000195,2]
[356125521,1741931437930,-212.588452,0.000195,2]
[356125522,1741931437939,-212.588452,0.000195,2]
[356125523,1741931437949,-216.164744,0.000195,2]
[356125524,1741931437958,-151.0,0.000195,2]
[356125525,1741931437968,-151.127816,0.000195,2]
[356125526,1741931437978,-151.0,0.000195,2]
[356125527,1741931437987,-151.0,0.000195,2]
[356125528,1741931437997,-151.0,0.000195,2]
[356125529,1741931438007,-151.0,0.000195,2]
[356125530,1741931438016,-1024.31264,0.000195,2]
[356125531,1741931438026,-1024.31264,0.000195,2]
[356125532,1741931438036,-174.103878,0.000195,2]
[356125533,1741931438045,-174.103878,0.000195,2]
[356125534,1741931438055,-349.71,0.00019577,2]
[356125535,1741931438065,-989.83647368,0.00019882,2]
[356125536,1741931438076,-312.9295482,0.00019895,2]
[356125538,1741931438086,-500.0,0.000199,7]
[356125539,1741931438095,-274.9604331,0.00019999,2]
[356125540,1741931438105,-500.0,0.00019999,2]
[356125541,1741931438115,-208.46868822,0.00019999,2]
[356125543,1741931438124,-500.0,0.00019999,2]
[356125544,1741931438134,-500.0,0.00019999,2]
[356125545,1741931438144,-500.0,0.00019999,2]
[356125546,1741931438153,-500.0,0.00019999,2]
[356125547,1741931438163,-410.50018821,0.00019999,2]
[356125548,1741931438172,-500.0,0.00019999,2]
[356125549,1741931438182,-10917.42848874,0.0002,2]
[356125550,1741931438191,-596.60257256,0.00020011,30]
[356125551,1741931438201,-449.26,0.0002038,2]
[356125552,1741931438210,-210.08,0.0002038,2]